[Event "Live Chess"]
[Site "Chess.com"]
[Date "2023.05.21"]
[Round "-"]
[White "Driftboard"]
[Black "Sweet-O"]
[Result "0-1"]
[WhiteElo "883"]
[BlackElo "1424"]
[TimeControl "300"]
[EndTime "4:27:49 PDT"]
[Termination "Sweet-O won by checkmate"]

1. e4 {[%clk 0:04:59.6]} 1... e5 {[%clk 0:04:59.2]} 2. Nf3 {[%clk 0:04:58.5]}
2... Nf6 {[%clk 0:04:59.1]} 3. Nc3 {[%clk 0:04:57.4]} 3... Bc5 {[%clk
0:04:58.5]} 4. Bc4 {[%clk 0:04:56.7]} 4... d6 {[%clk 0:04:57.4]} 5. O-O {[%clk
0:04:56.2]} 5... Bg4 {[%clk 0:04:56.8]} 6. d3 {[%clk 0:04:55.6]} 6... Nc6 {[%clk
0:04:55.7]} 7. Bg5 {[%clk 0:04:55.1]} 7... Nd4 {[%clk 0:04:54.7]} 8. h3 {[%clk
0:04:49.9]} 8... Bxf3 {[%clk 0:04:51.7]} 9. gxf3 {[%clk 0:04:48.1]} 9... h6
{[%clk 0:04:50.6]} 10. Bxf6 {[%clk 0:04:45.3]} 10... Qxf6 {[%clk 0:04:49.3]} 11.
Nd5 {[%clk 0:04:44]} 11... Nxf3+ {[%clk 0:04:47.3]} 12. Qxf3 {[%clk 0:04:40.4]}
12... Qxf3 {[%clk 0:04:45.7]} 13. Nxc7+ {[%clk 0:04:38.6]} 13... Kd7 {[%clk
0:04:44.2]} 14. Nxa8 {[%clk 0:04:37.5]} 14... Rxa8 {[%clk 0:04:42.2]} 15. Bd5
{[%clk 0:04:34.2]} 15... Qxh3 {[%clk 0:04:35.2]} 16. Bxb7 {[%clk 0:04:32.5]}
16... Rb8 {[%clk 0:04:33.7]} 17. Bd5 {[%clk 0:04:30.6]} 17... Rxb2 {[%clk
0:04:28.9]} 18. Bxf7 {[%clk 0:04:28.1]} 18... Rxc2 {[%clk 0:04:27.3]} 19. Bg6
{[%clk 0:04:25.5]} 19... Qg4+ {[%clk 0:04:25.4]} 20. Kh1 {[%clk 0:04:23.4]}
20... Qxg6 {[%clk 0:04:24.3]} 21. Rg1 {[%clk 0:04:21.5]} 21... Qh7 {[%clk
0:04:17.6]} 22. Kh2 {[%clk 0:04:19.2]} 22... Rxf2+ {[%clk 0:04:16.1]} 23. Rg2
{[%clk 0:04:17.9]} 23... Rxg2+ {[%clk 0:04:13.7]} 24. Kxg2 {[%clk 0:04:16.9]}
24... g5 {[%clk 0:04:09]} 25. Kf3 {[%clk 0:04:15.9]} 25... h5 {[%clk 0:04:07.8]}
26. Kg3 {[%clk 0:04:14.9]} 26... h4+ {[%clk 0:04:06.3]} 27. Kh3 {[%clk
0:04:12.1]} 27... Qh5 {[%clk 0:04:05.2]} 28. Rh1 {[%clk 0:04:08.8]} 28... Qf3+
{[%clk 0:04:03.8]} 29. Kh2 {[%clk 0:04:08]} 29... g4 {[%clk 0:04:01.4]} 30. d4
{[%clk 0:04:03.4]} 30... Qf2# {[%clk 0:04:00.2]} 0-1

[Event "Live Chess"]
[Site "Chess.com"]
[Date "2023.05.21"]
[Round "-"]
[White "JoRoSaR"]
[Black "SupremeTactician"]
[Result "0-1"]
[WhiteElo "1700"]
[BlackElo "2226"]
[TimeControl "300"]
[EndTime "4:27:51 PDT"]
[Termination "SupremeTactician won by resignation"]

1. e4 {[%clk 0:04:53.2]} 1... e5 {[%clk 0:04:59.2]} 2. Nf3 {[%clk 0:04:49]} 2...
Nc6 {[%clk 0:04:57.7]} 3. Bb5 {[%clk 0:04:44]} 3... a6 {[%clk 0:04:53.7]} 4.
Bxc6 {[%clk 0:04:42.9]} 4... dxc6 {[%clk 0:04:52.9]} 5. O-O {[%clk 0:04:42.5]}
5... f6 {[%clk 0:04:52.1]} 6. d4 {[%clk 0:04:41.8]} 6... exd4 {[%clk 0:04:51.5]}
7. Nxd4 {[%clk 0:04:40.5]} 7... Bd6 {[%clk 0:04:50.7]} 8. Be3 {[%clk 0:04:37.7]}
8... Ne7 {[%clk 0:04:49.8]} 9. f3 {[%clk 0:04:37.2]} 9... Ng6 {[%clk 0:04:41.2]}
10. c4 {[%clk 0:04:30.2]} 10... Bd7 {[%clk 0:04:39.1]} 11. Nc3 {[%clk
0:04:29.1]} 11... Qe7 {[%clk 0:04:35.8]} 12. Re1 {[%clk 0:04:24.7]} 12... O-O-O
{[%clk 0:04:33.8]} 13. Qc2 {[%clk 0:04:22.4]} 13... Bc5 {[%clk 0:04:32.5]} 14.
Rad1 {[%clk 0:04:20.6]} 14... Be6 {[%clk 0:04:28]} 15. Nxe6 {[%clk 0:04:16.4]}
15... Bxe3+ {[%clk 0:04:27.1]} 16. Rxe3 {[%clk 0:04:14.3]} 16... Qxe6 {[%clk
0:04:26.6]} 17. b3 {[%clk 0:04:11.1]} 17... Nf4 {[%clk 0:04:23.7]} 18. g3 {[%clk
0:04:07.1]} 18... Ng6 {[%clk 0:04:16.2]} 19. Red3 {[%clk 0:04:03.9]} 19... Ne5
{[%clk 0:04:12.2]} 20. Rxd8+ {[%clk 0:04:01.4]} 20... Rxd8 {[%clk 0:04:12.1]}
21. Rxd8+ {[%clk 0:04:00.3]} 21... Kxd8 {[%clk 0:04:12]} 22. Qd2+ {[%clk
0:03:59.8]} 22... Qd6 {[%clk 0:04:11.2]} 23. Nb1 {[%clk 0:03:57.1]} 23... Nxf3+
{[%clk 0:04:08.7]} 0-1

[Event "Live Chess"]
[Site "Chess.com"]
[Date "2023.05.21"]
[Round "-"]
[White "zdanevych"]
[Black "FlorinHristea"]
[Result "0-1"]
[WhiteElo "1548"]
[BlackElo "1814"]
[TimeControl "300"]
[EndTime "4:28:01 PDT"]
[Termination "FlorinHristea won by resignation"]

1. d4 {[%clk 0:04:58]} 1... d5 {[%clk 0:04:59.9]} 2. c4 {[%clk 0:04:56.8]} 2...
c5 {[%clk 0:04:59.4]} 3. cxd5 {[%clk 0:04:54.2]} 3... Qxd5 {[%clk 0:04:59.3]} 4.
Nf3 {[%clk 0:04:52.8]} 4... Bg4 {[%clk 0:04:57.6]} 5. Nc3 {[%clk 0:04:50.5]}
5... Qd8 {[%clk 0:04:57.1]} 6. d5 {[%clk 0:04:47]} 6... Nf6 {[%clk 0:04:55.6]}
7. h3 {[%clk 0:04:44.6]} 7... Bh5 {[%clk 0:04:54.4]} 8. e4 {[%clk 0:04:40.1]}
8... e6 {[%clk 0:04:50.1]} 9. Bc4 {[%clk 0:04:35]} 9... exd5 {[%clk 0:04:44.1]}
10. Nxd5 {[%clk 0:04:34.9]} 10... Nxd5 {[%clk 0:04:42.4]} 11. Bxd5 {[%clk
0:04:32.2]} 11... Nc6 {[%clk 0:04:41]} 12. O-O {[%clk 0:04:17.6]} 12... Be7
{[%clk 0:04:38.8]} 13. Qb3 {[%clk 0:04:07.6]} 13... Qc7 {[%clk 0:04:32.9]} 14.
Bg5 {[%clk 0:03:43.6]} 14... Bxf3 {[%clk 0:04:25]} 15. Bxf7+ {[%clk 0:03:36.2]}
15... Kf8 {[%clk 0:04:21.2]} 16. Bxe7+ {[%clk 0:03:34]} 16... Qxe7 {[%clk
0:04:15.3]} 17. Qxf3 {[%clk 0:03:23.1]} 17... Qxf7 {[%clk 0:04:13.8]} 18. Qa3
{[%clk 0:03:18.5]} 18... b6 {[%clk 0:04:09.6]} 19. Rad1 {[%clk 0:03:15.3]} 19...
Rd8 {[%clk 0:04:02.9]} 20. Rde1 {[%clk 0:03:07.5]} 20... Nd4 {[%clk 0:03:57.3]}
21. e5 {[%clk 0:02:58.8]} 21... Nc2 {[%clk 0:03:50.7]} 0-1

[Event "Live Chess"]
[Site "Chess.com"]
[Date "2023.05.21"]
[Round "-"]
[White "EdenHazard8"]
[Black "Twickenham2014"]
[Result "0-1"]
[WhiteElo "1951"]
[BlackElo "2284"]
[TimeControl "300"]
[EndTime "4:28:13 PDT"]
[Termination "Twickenham2014 won by resignation"]

1. e4 {[%clk 0:04:58.8]} 1... c5 {[%clk 0:04:57.9]} 2. Nc3 {[%clk 0:04:55.5]}
2... Nc6 {[%clk 0:04:56.5]} 3. f4 {[%clk 0:04:54.5]} 3... g6 {[%clk 0:04:53.2]}
4. Nf3 {[%clk 0:04:53.8]} 4... Bg7 {[%clk 0:04:52.8]} 5. Bc4 {[%clk 0:04:53.2]}
5... e6 {[%clk 0:04:51.7]} 6. d3 {[%clk 0:04:52.4]} 6... Nge7 {[%clk 0:04:47.9]}
7. O-O {[%clk 0:04:51.6]} 7... O-O {[%clk 0:04:46.2]} 8. Qe1 {[%clk 0:04:50.4]}
8... b6 {[%clk 0:04:45.2]} 9. Qh4 {[%clk 0:04:49.2]} 9... d5 {[%clk 0:04:40.7]}
10. Bb3 {[%clk 0:04:47.8]} 10... Nd4 {[%clk 0:04:39.2]} 11. f5 {[%clk
0:04:46.8]} 11... gxf5 {[%clk 0:04:36.6]} 12. Bh6 {[%clk 0:04:43.2]} 12... Nxf3+
{[%clk 0:04:24.2]} 13. Rxf3 {[%clk 0:04:41.9]} 13... fxe4 {[%clk 0:04:21.6]} 14.
Rg3 {[%clk 0:04:37.4]} 14... Ng6 {[%clk 0:04:20.9]} 15. Qxd8 {[%clk 0:04:33.9]}
15... Rxd8 {[%clk 0:04:20.8]} 16. Bxg7 {[%clk 0:04:33.2]} 16... Kxg7 {[%clk
0:04:20.7]} 17. dxe4 {[%clk 0:04:32.6]} 17... c4 {[%clk 0:04:14.6]} 18. Ba4
{[%clk 0:04:31]} 18... Bb7 {[%clk 0:04:06.4]} 19. exd5 {[%clk 0:04:28.6]} 19...
exd5 {[%clk 0:04:04.9]} 20. Rf1 {[%clk 0:04:28.5]} 20... a6 {[%clk 0:04:03.2]}
21. Rgf3 {[%clk 0:04:22.7]} 21... Rf8 {[%clk 0:03:43.3]} 22. Rf5 {[%clk
0:04:16.5]} 22... b5 {[%clk 0:03:41.6]} 0-1

[Event "Live Chess"]
[Site "Chess.com"]
[Date "2023.05.21"]
[Round "-"]
[White "Crowded_House"]
[Black "FailsGambits"]
[Result "1-0"]
[WhiteElo "1651"]
[BlackElo "1335"]
[TimeControl "300"]
[EndTime "4:28:27 PDT"]
[Termination "Crowded_House won by resignation"]

1. d4 {[%clk 0:04:58.9]} 1... d5 {[%clk 0:04:58.6]} 2. Bg5 {[%clk 0:04:58.3]}
2... f6 {[%clk 0:04:56.1]} 3. Bh4 {[%clk 0:04:56.1]} 3... Nh6 {[%clk 0:04:46.3]}
4. e3 {[%clk 0:04:54.1]} 4... Nf5 {[%clk 0:04:45.7]} 5. Bg3 {[%clk 0:04:50]}
5... Nxg3 {[%clk 0:04:45]} 6. hxg3 {[%clk 0:04:49.7]} 6... e5 {[%clk 0:04:43.1]}
7. dxe5 {[%clk 0:04:44.3]} 7... fxe5 {[%clk 0:04:43]} 8. Qh5+ {[%clk 0:04:39.6]}
8... g6 {[%clk 0:04:31]} 9. Qxe5+ {[%clk 0:04:38.3]} 9... Be7 {[%clk 0:04:29.6]}
10. Qxh8+ {[%clk 0:04:36.3]} 10... Kd7 {[%clk 0:04:24.7]} 11. Qxd8+ {[%clk
0:04:34.7]} 1-0

[Event "Live Chess"]
[Site "Chess.com"]
[Date "2023.05.21"]
[Round "-"]
[White "ElectricFalcon"]
[Black "LL220284LL"]
[Result "0-1"]
[WhiteElo "1080"]
[BlackElo "2327"]
[TimeControl "300"]
[EndTime "4:28:58 PDT"]
[Termination "LL220284LL won by resignation"]

1. d4 {[%clk 0:04:56.7]} 1... Nf6 {[%clk 0:04:58]} 2. c4 {[%clk 0:04:56.6]} 2...
e6 {[%clk 0:04:57.2]} 3. Nf3 {[%clk 0:04:56.1]} 3... Bb4+ {[%clk 0:04:56.7]} 4.
Nc3 {[%clk 0:04:55.4]} 4... d5 {[%clk 0:04:55.2]} 5. Bd2 {[%clk 0:04:54.2]} 5...
O-O {[%clk 0:04:54.1]} 6. e3 {[%clk 0:04:53]} 6... c5 {[%clk 0:04:53.1]} 7. cxd5
{[%clk 0:04:51.1]} 7... exd5 {[%clk 0:04:51.9]} 8. Be2 {[%clk 0:04:47.8]} 8...
Nc6 {[%clk 0:04:50.7]} 9. O-O {[%clk 0:04:44.7]} 9... cxd4 {[%clk 0:04:49.8]}
10. Nxd4 {[%clk 0:04:44]} 10... Nxd4 {[%clk 0:04:48.8]} 11. exd4 {[%clk
0:04:43.9]} 11... Bd6 {[%clk 0:04:43.6]} 12. Bf3 {[%clk 0:04:37.6]} 12... h6
{[%clk 0:04:40.6]} 13. Nxd5 {[%clk 0:04:35.5]} 13... Nxd5 {[%clk 0:04:39.5]} 14.
Bxd5 {[%clk 0:04:34.8]} 14... Bxh2+ {[%clk 0:04:39.1]} 15. Kxh2 {[%clk
0:04:33.2]} 15... Qxd5 {[%clk 0:04:39]} 16. Kg1 {[%clk 0:04:31.9]} 16... Qxd4
{[%clk 0:04:36.4]} 17. Qe2 {[%clk 0:04:23.2]} 17... Be6 {[%clk 0:04:33.6]} 18.
Rad1 {[%clk 0:04:21.7]} 18... Qxb2 {[%clk 0:04:31.1]} 19. Qf3 {[%clk 0:04:14.9]}
19... Rad8 {[%clk 0:04:26]} 20. Qg3 {[%clk 0:04:07.3]} 20... Rxd2 {[%clk
0:04:22.8]} 21. Rxd2 {[%clk 0:04:06.5]} 21... Qxd2 {[%clk 0:04:22.7]} 22. a4
{[%clk 0:03:59.3]} 22... Rd8 {[%clk 0:04:20.3]} 23. Qf3 {[%clk 0:03:57.2]} 23...
Qd3 {[%clk 0:04:17.6]} 24. Qxd3 {[%clk 0:03:51.4]} 24... Rxd3 {[%clk 0:04:17.5]}
25. g3 {[%clk 0:03:36.7]} 25... Ra3 {[%clk 0:04:16.1]} 0-1

[Event "Live Chess"]
[Site "Chess.com"]
[Date "2023.05.21"]
[Round "-"]
[White "Nakula1000"]
[Black "KeithArkell"]
[Result "1-0"]
[WhiteElo "650"]
[BlackElo "2487"]
[TimeControl "300"]
[EndTime "4:29:05 PDT"]
[Termination "Nakula1000 won by resignation"]

1. e4 {[%clk 0:04:57.4]} 1... c6 {[%clk 0:04:59.3]} 2. d4 {[%clk 0:04:54.8]}
2... d5 {[%clk 0:04:58]} 3. e5 {[%clk 0:04:46.6]} 3... c5 {[%clk 0:04:57.2]} 4.
Nf3 {[%clk 0:04:40.2]} 4... cxd4 {[%clk 0:04:54.5]} 5. Qxd4 {[%clk 0:04:37.4]}
5... Nc6 {[%clk 0:04:52.1]} 6. Qa4 {[%clk 0:04:33.3]} 6... Bd7 {[%clk
0:04:45.6]} 7. Qf4 {[%clk 0:04:30.7]} 7... h6 {[%clk 0:04:40.5]} 8. h4 {[%clk
0:04:28.8]} 8... Rc8 {[%clk 0:04:34.6]} 9. a3 {[%clk 0:04:26.5]} 9... e6 {[%clk
0:04:30.4]} 10. Nc3 {[%clk 0:04:22.4]} 10... Nge7 {[%clk 0:04:27.5]} 11. Bd3
{[%clk 0:04:13.3]} 11... Ng6 {[%clk 0:04:24.2]} 12. Qg3 {[%clk 0:04:11.1]} 12...
a6 {[%clk 0:03:57]} 13. Bxg6 {[%clk 0:04:08.2]} 13... fxg6 {[%clk 0:03:56]} 14.
Qxg6+ {[%clk 0:04:05.4]} 14... Ke7 {[%clk 0:03:55.3]} 15. Be3 {[%clk 0:04:02.5]}
15... Be8 {[%clk 0:03:53.2]} 16. Qg4 {[%clk 0:03:56.3]} 16... Kd7 {[%clk
0:03:51.1]} 17. Nxd5 {[%clk 0:03:53.8]} 17... Qa5+ {[%clk 0:03:48.6]} 18. c3
{[%clk 0:03:51.7]} 18... Qxd5 {[%clk 0:03:30]} 19. Rd1 {[%clk 0:03:49.1]} 19...
Qxd1+ {[%clk 0:03:29.2]} 20. Kxd1 {[%clk 0:03:46.8]} 20... Ne7 {[%clk
0:03:13.5]} 21. Nd4 {[%clk 0:03:44.4]} 21... Bf7 {[%clk 0:03:10.9]} 22. Qf3
{[%clk 0:03:42.6]} 22... Kc7 {[%clk 0:03:08.7]} 23. Qxf7 {[%clk 0:03:40.4]} 1-0

[Event "Live Chess"]
[Site "Chess.com"]
[Date "2023.05.21"]
[Round "-"]
[White "MarkLim1"]
[Black "domrobson"]
[Result "0-1"]
[WhiteElo "1689"]
[BlackElo "1720"]
[TimeControl "300"]
[EndTime "4:29:12 PDT"]
[Termination "domrobson won by resignation"]

1. d4 {[%clk 0:04:59.6]} 1... Nf6 {[%clk 0:04:49.9]} 2. Nf3 {[%clk 0:04:57.8]}
2... e6 {[%clk 0:04:45.9]} 3. e3 {[%clk 0:04:56.8]} 3... d5 {[%clk 0:04:44.7]}
4. Bd3 {[%clk 0:04:56]} 4... c5 {[%clk 0:04:43.9]} 5. b3 {[%clk 0:04:55]} 5...
cxd4 {[%clk 0:04:41.7]} 6. exd4 {[%clk 0:04:54.1]} 6... Nc6 {[%clk 0:04:39.8]}
7. O-O {[%clk 0:04:53]} 7... Bd6 {[%clk 0:04:38.3]} 8. Bb2 {[%clk 0:04:51.4]}
8... Qc7 {[%clk 0:04:32.6]} 9. c4 {[%clk 0:04:50.3]} 9... O-O {[%clk 0:04:29.8]}
10. Nc3 {[%clk 0:04:48.5]} 10... Bf4 {[%clk 0:04:23.4]} 11. Re1 {[%clk
0:04:36.1]} 11... a6 {[%clk 0:04:17.7]} 12. Rc1 {[%clk 0:04:35]} 12... Bxc1
{[%clk 0:04:13.7]} 13. Bxc1 {[%clk 0:04:33.4]} 13... Nb4 {[%clk 0:04:11]} 14.
Bb1 {[%clk 0:04:32.2]} 14... dxc4 {[%clk 0:04:07.9]} 15. bxc4 {[%clk 0:04:30.2]}
15... Qxc4 {[%clk 0:04:07.1]} 16. Bb2 {[%clk 0:04:28.6]} 16... Nfd5 {[%clk
0:04:02.7]} 17. Nxd5 {[%clk 0:04:25.9]} 17... exd5 {[%clk 0:03:56.3]} 18. Bxh7+
{[%clk 0:04:20.7]} 18... Kxh7 {[%clk 0:03:46.4]} 19. Ng5+ {[%clk 0:04:19.6]}
19... Kg8 {[%clk 0:03:39.1]} 20. Qh5 {[%clk 0:04:17.8]} 20... Bf5 {[%clk
0:03:31]} 21. g4 {[%clk 0:03:48.5]} 21... Bg6 {[%clk 0:03:28.1]} 22. Qh4 {[%clk
0:03:47.7]} 22... Nd3 {[%clk 0:03:21.1]} 23. f4 {[%clk 0:03:39.4]} 23... Nxe1
{[%clk 0:03:18.1]} 24. f5 {[%clk 0:03:38.8]} 24... Qe2 {[%clk 0:03:05.5]} 0-1

[Event "Live Chess"]
[Site "Chess.com"]
[Date "2023.05.21"]
[Round "-"]
[White "smoggyrabbit"]
[Black "Abde2012"]
[Result "1-0"]
[WhiteElo "1690"]
[BlackElo "752"]
[TimeControl "300"]
[EndTime "4:29:20 PDT"]
[Termination "smoggyrabbit won by checkmate"]

1. d4 {[%clk 0:04:58.6]} 1... c6 {[%clk 0:04:58.8]} 2. Nf3 {[%clk 0:04:54.3]}
2... d5 {[%clk 0:04:58]} 3. e3 {[%clk 0:04:52.2]} 3... Bg4 {[%clk 0:04:54.8]} 4.
Nbd2 {[%clk 0:04:49]} 4... Nf6 {[%clk 0:04:52.1]} 5. h3 {[%clk 0:04:47.9]} 5...
Bxf3 {[%clk 0:04:50.1]} 6. Nxf3 {[%clk 0:04:46.6]} 6... Nbd7 {[%clk 0:04:48.4]}
7. b3 {[%clk 0:04:37.9]} 7... e6 {[%clk 0:04:47.6]} 8. Bd3 {[%clk 0:04:34.7]}
8... Bb4+ {[%clk 0:04:46.5]} 9. Bd2 {[%clk 0:04:28.7]} 9... Bxd2+ {[%clk
0:04:42.7]} 10. Qxd2 {[%clk 0:04:27.7]} 10... O-O {[%clk 0:04:42.2]} 11. O-O
{[%clk 0:04:26.6]} 11... a6 {[%clk 0:04:36.9]} 12. Ne5 {[%clk 0:04:22.9]} 12...
Ra7 {[%clk 0:04:31.5]} 13. f4 {[%clk 0:04:20.9]} 13... a5 {[%clk 0:04:19.4]} 14.
Rf3 {[%clk 0:04:12.9]} 14... a4 {[%clk 0:04:16.8]} 15. Rg3 {[%clk 0:04:06.9]}
15... g6 {[%clk 0:04:10.3]} 16. Qe2 {[%clk 0:03:40.6]} 16... Ne4 {[%clk
0:04:01.8]} 17. Bxe4 {[%clk 0:03:32.8]} 17... dxe4 {[%clk 0:03:59.9]} 18. c4
{[%clk 0:03:14]} 18... axb3 {[%clk 0:03:56.9]} 19. Nxd7 {[%clk 0:03:07.3]} 19...
Qxd7 {[%clk 0:03:55.2]} 20. Qb2 {[%clk 0:03:03]} 20... bxa2 {[%clk 0:03:52.7]}
21. Rxa2 {[%clk 0:03:02]} 21... Rxa2 {[%clk 0:03:51.1]} 22. Qxa2 {[%clk
0:03:01.9]} 22... b5 {[%clk 0:03:46.1]} 23. cxb5 {[%clk 0:02:59.6]} 23... cxb5
{[%clk 0:03:45]} 24. Rg5 {[%clk 0:02:55.3]} 24... Rb8 {[%clk 0:03:38.1]} 25. Qb1
{[%clk 0:02:45.9]} 25... Qd8 {[%clk 0:03:35.8]} 26. Qxe4 {[%clk 0:02:40.3]}
26... f6 {[%clk 0:03:32.4]} 27. Qxe6+ {[%clk 0:02:36.9]} 27... Kh8 {[%clk
0:03:30.6]} 28. Rd5 {[%clk 0:02:31.1]} 28... Qg8 {[%clk 0:03:22.8]} 29. Qxf6+
{[%clk 0:02:27.5]} 29... Qg7 {[%clk 0:03:20.9]} 30. Qxg7+ {[%clk 0:01:51.9]}
30... Kxg7 {[%clk 0:03:18.7]} 31. Kf2 {[%clk 0:01:48.8]} 31... b4 {[%clk
0:03:17.4]} 32. Rc5 {[%clk 0:01:39.3]} 32... b3 {[%clk 0:03:16.5]} 33. Rc1
{[%clk 0:01:38.1]} 33... b2 {[%clk 0:03:15.3]} 34. Rb1 {[%clk 0:01:37.4]} 34...
Kf6 {[%clk 0:03:13.7]} 35. Kf3 {[%clk 0:01:32.9]} 35... Ke6 {[%clk 0:03:13.3]}
36. Ke4 {[%clk 0:01:29.7]} 36... h5 {[%clk 0:03:09.8]} 37. g4 {[%clk 0:01:23.6]}
37... hxg4 {[%clk 0:03:08]} 38. hxg4 {[%clk 0:01:22.7]} 38... Kf6 {[%clk
0:03:06.3]} 39. Kd5 {[%clk 0:00:55.5]} 39... Rb5+ {[%clk 0:03:03.6]} 40. Kc4
{[%clk 0:00:52.9]} 40... Rb8 {[%clk 0:03:00.1]} 41. Kc3 {[%clk 0:00:43.4]} 41...
g5 {[%clk 0:02:59.3]} 42. Rxb2 {[%clk 0:00:38.9]} 42... Rxb2 {[%clk 0:02:57.2]}
43. Kxb2 {[%clk 0:00:36.9]} 43... gxf4 {[%clk 0:02:56.8]} 44. exf4 {[%clk
0:00:36]} 44... Ke6 {[%clk 0:02:55.1]} 45. Kc3 {[%clk 0:00:34.8]} 45... Kf6
{[%clk 0:02:53.8]} 46. Kc4 {[%clk 0:00:33.8]} 46... Ke6 {[%clk 0:02:52.6]} 47.
Kc5 {[%clk 0:00:33.2]} 47... Kf6 {[%clk 0:02:50.5]} 48. d5 {[%clk 0:00:32.7]}
48... Ke7 {[%clk 0:02:49.1]} 49. Kc6 {[%clk 0:00:32]} 49... Kd8 {[%clk
0:02:46.3]} 50. g5 {[%clk 0:00:31.3]} 50... Ke8 {[%clk 0:02:44.9]} 51. g6 {[%clk
0:00:30.7]} 51... Kf8 {[%clk 0:02:43.5]} 52. d6 {[%clk 0:00:30.1]} 52... Kg7
{[%clk 0:02:42.5]} 53. d7 {[%clk 0:00:29.5]} 53... Kxg6 {[%clk 0:02:42.1]} 54.
d8=Q {[%clk 0:00:28.9]} 54... Kf5 {[%clk 0:02:41.7]} 55. Qe8 {[%clk 0:00:28]}
55... Kxf4 {[%clk 0:02:41.3]} 56. Kd5 {[%clk 0:00:27.3]} 56... Kf3 {[%clk
0:02:40.5]} 57. Qe4+ {[%clk 0:00:26.2]} 57... Kf2 {[%clk 0:02:40.1]} 58. Qd3
{[%clk 0:00:25.1]} 58... Kg2 {[%clk 0:02:38.5]} 59. Ke4 {[%clk 0:00:24.3]} 59...
Kf2 {[%clk 0:02:37.5]} 60. Qe3+ {[%clk 0:00:23.5]} 60... Kg2 {[%clk 0:02:36.8]}
61. Kf4 {[%clk 0:00:22.3]} 61... Kh2 {[%clk 0:02:33.2]} 62. Qg3+ {[%clk
0:00:18.6]} 62... Kh1 {[%clk 0:02:32]} 63. Qg7 {[%clk 0:00:17.6]} 63... Kh2
{[%clk 0:02:30.6]} 64. Kf3 {[%clk 0:00:16.8]} 64... Kh1 {[%clk 0:02:29.5]} 65.
Qg2# {[%clk 0:00:15.6]} 1-0

[Event "Live Chess"]
[Site "Chess.com"]
[Date "2023.05.21"]
[Round "-"]
[White "ProfPoisson"]
[Black "Biranidun"]
[Result "0-1"]
[WhiteElo "1215"]
[BlackElo "2533"]
[TimeControl "300"]
[EndTime "4:29:23 PDT"]
[Termination "Biranidun won by resignation"]

1. e4 {[%clk 0:04:56.5]} 1... c5 {[%clk 0:04:58.3]} 2. Nf3 {[%clk 0:04:54]} 2...
d6 {[%clk 0:04:57.1]} 3. Bb5+ {[%clk 0:04:50.5]} 3... Nd7 {[%clk 0:04:56.1]} 4.
c3 {[%clk 0:04:46.9]} 4... a6 {[%clk 0:04:55.1]} 5. Ba4 {[%clk 0:04:44.6]} 5...
Nf6 {[%clk 0:04:53.9]} 6. Qe2 {[%clk 0:04:38]} 6... b5 {[%clk 0:04:53.2]} 7. Bc2
{[%clk 0:04:35.4]} 7... Bb7 {[%clk 0:04:52.4]} 8. O-O {[%clk 0:04:32.4]} 8... e6
{[%clk 0:04:52.1]} 9. d4 {[%clk 0:04:26.2]} 9... Be7 {[%clk 0:04:51.5]} 10. Nbd2
{[%clk 0:04:12.9]} 10... Qc7 {[%clk 0:04:50.2]} 11. a4 {[%clk 0:04:06.9]} 11...
cxd4 {[%clk 0:04:47.4]} 12. Nxd4 {[%clk 0:03:58]} 12... b4 {[%clk 0:04:46.2]}
13. Qc4 {[%clk 0:03:33]} 13... Qxc4 {[%clk 0:04:44.1]} 14. Nxc4 {[%clk
0:03:31.2]} 14... bxc3 {[%clk 0:04:44]} 15. bxc3 {[%clk 0:03:28.4]} 15... Bxe4
{[%clk 0:04:43]} 16. Bxe4 {[%clk 0:03:19.7]} 16... Nxe4 {[%clk 0:04:42.9]} 17.
Ne2 {[%clk 0:02:54.7]} 17... Rc8 {[%clk 0:04:40.4]} 18. f3 {[%clk 0:02:39.6]}
18... Rxc4 {[%clk 0:04:38.6]} 19. fxe4 {[%clk 0:02:37.8]} 19... Rxe4 {[%clk
0:04:38.5]} 20. Nd4 {[%clk 0:02:33.1]} 20... d5 {[%clk 0:04:35.4]} 21. Rb1
{[%clk 0:02:30]} 21... Bc5 {[%clk 0:04:31.3]} 22. Rd1 {[%clk 0:02:08.1]} 22...
e5 {[%clk 0:04:28.3]} 23. Rb7 {[%clk 0:01:54.7]} 23... exd4 {[%clk 0:04:26.5]}
24. cxd4 {[%clk 0:01:44.5]} 24... Bxd4+ {[%clk 0:04:25.2]} 25. Kf1 {[%clk
0:01:32.2]} 25... Ke7 {[%clk 0:04:16.7]} 26. Ba3+ {[%clk 0:01:27.3]} 26... Ke6
{[%clk 0:04:14.7]} 27. Rb4 {[%clk 0:01:14.3]} 27... Bc5 {[%clk 0:04:11.3]} 28.
Rxe4+ {[%clk 0:01:07.6]} 28... dxe4 {[%clk 0:04:11.2]} 29. Bb2 {[%clk
0:00:59.4]} 29... Ne5 {[%clk 0:04:06.3]} 30. Ke2 {[%clk 0:00:52]} 30... Nd3
{[%clk 0:04:05.1]} 31. Bxg7 {[%clk 0:00:26.2]} 31... Rg8 {[%clk 0:04:03.5]} 32.
Kf1 {[%clk 0:00:11.2]} 32... Rxg7 {[%clk 0:04:02.1]} 0-1

[Event "Live Chess"]
[Site "Chess.com"]
[Date "2023.05.21"]
[Round "-"]
[White "raminguy"]
[Black "EdenHazard8"]
[Result "1-0"]
[WhiteElo "1960"]
[BlackElo "1943"]
[TimeControl "300"]
[EndTime "4:29:37 PDT"]
[Termination "raminguy won by resignation"]

1. d4 {[%clk 0:04:59.4]} 1... d5 {[%clk 0:04:59.2]} 2. Nc3 {[%clk 0:04:58.9]}
2... Nf6 {[%clk 0:04:59.1]} 3. Bf4 {[%clk 0:04:58.2]} 3... a6 {[%clk 0:04:56.2]}
4. e3 {[%clk 0:04:57.2]} 4... c5 {[%clk 0:04:55.6]} 5. dxc5 {[%clk 0:04:55.3]}
5... Nc6 {[%clk 0:04:54.4]} 6. a3 {[%clk 0:04:54]} 6... e5 {[%clk 0:04:53.9]} 7.
Bg5 {[%clk 0:04:53.4]} 7... Bxc5 {[%clk 0:04:53]} 8. Bxf6 {[%clk 0:04:52.1]}
8... gxf6 {[%clk 0:04:52.3]} 9. Qxd5 {[%clk 0:04:50.5]} 9... Qe7 {[%clk
0:04:51]} 10. Nf3 {[%clk 0:04:31.2]} 10... Be6 {[%clk 0:04:39.3]} 11. Qe4 {[%clk
0:04:19]} 11... O-O-O {[%clk 0:04:37]} 12. Bxa6 {[%clk 0:04:15.5]} 12... f5
{[%clk 0:04:31.7]} 13. Qxc6+ {[%clk 0:04:14.3]} 1-0